Cogmind - Beta 15 @@@ ROGUE MODE // 2025.10.17 @ 19:30:41 Player: chebyrekser Result: Destroyed by D-53 Grenadier with Mini Grenade Launcher Performance ------------- Evolutions (0) 0 Regions Visited (2) 400 Robots Destroyed (27) 135 Value Destroyed (488) 488 Prototype IDs (0) 0 Alien Tech Used (0) 0 Bonus (0) 0 TOTAL SCORE: 1023 Bonus ------- None Cogmind --------- Core Integrity 0/250 Matter 192/300 Energy 99/100 System Corruption 1% Temperature Cool (98) Movement Core (50) Location -10/Mines Parts ------- > --- POWER (1) -------- (None) > --- PROPULSION (2) --- (None) > --- UTILITY (2) ------ (None) > --- WEAPON (2) ------- (None) > --- INVENTORY (5) ---- Huge Storage Unit Seismic Detector Hacking Suite Light Assault Rifle Hammer Peak State ------------ > --- POWER ------------ Light Ion Engine > --- PROPULSION ------- Light Treads Compact Wheel > --- UTILITY ---------- Huge Storage Unit Seismic Detector > --- WEAPON ----------- Small Laser Assault Rifle > --- INVENTORY -------- Light Ion Engine Light Ion Engine Light Ion Engine Light Nuclear Core Light Treads Light Treads Light Treads Wheel Compact Wheel Heat Sink Large Storage Unit Huge Storage Unit Medium Matter Pod Seismic Detector Seismic Detector Transport Network Coupler Hacking Suite EM Pulse Gun Small Laser Particle Gun Light Assault Rifle Light Assault Rifle Light Cannon Light Cannon Mining Laser [Rating: 10] Favorites ----------- Power Light Ion Engine Engine Light Ion Engine Propulsion Compact Wheel Treads Light Treads Wheel Compact Wheel Utility Seismic Detector Device Seismic Detector Storage Huge Storage Unit Weapon Small Laser Energy Gun Small Laser Ballistic Gun Assault Rifle Launcher Grenade Launcher Special Weapon Mining Laser Build | -11 -10 -10 ------- Run | Yrd Mat Min Slots Evolved . | . . . Power . | . . . Propulsion . | . . . Utility . | . . . Weapon . | . . . Parts Attached 22 | 8 8 6 Power 4 | 1 2 1 Engine 4 | 1 2 1 Core . | . . . Reactor . | . . . Propulsion 3 | 2 . 1 Treads 2 | 1 . 1 Leg . | . . . Wheel 1 | 1 . . Hover . | . . . Flight . | . . . Utility 7 | 3 4 . Device 3 | 2 1 . Storage 4 | 1 3 . Processor . | . . . Hackware . | . . . Protection . | . . . Artifact . | . . . Weapon 8 | 2 2 4 Energy Gun 4 | 1 1 2 Energy Cannon . | . . . Ballistic Gun 1 | 1 . . Ballistic Cannon . | . . . Launcher 2 | . . 2 Special Weapon 1 | . 1 . Impact Weapon . | . . . Slashing Weapon . | . . . Piercing Weapon . | . . . Special Melee Weapon . | . . . Unidentified Prototypes . | . . . Parts Lost 11 | . 2 9 Power 3 | . 1 2 Propulsion 3 | . . 3 Utility . | . . . Weapon 5 | . 1 4 Highest Loss Streak 5 | . 1 5 To Critical Strikes . | . . . Average Backups 18 | 3 19 22 Power 2 | . 3 2 Propulsion 4 | 2 4 3 Utility 5 | . 5 8 Weapon 5 | . 5 7 Tool/Special . | . . . Unused Backups 21 | . 5 16 Power 3 | . 1 2 Propulsion 6 | . 3 3 Utility 6 | . . 6 Weapon 6 | . 1 5 Tool/Special . | . . . Average Slot Usage (%) 99 | . 99 91 Engine 13 | . 13 11 Treads 13 | . 14 13 Wheel 13 | . 14 13 Device 13 | . 14 13 Storage 13 | . 14 13 Energy Gun 13 | . 14 13 Ballistic Gun 12 | . 13 9 Peak Build Rating 10 | 7 10 10 Average Rating 8 | 5 8 9 On Entrance 5 | . 7 10 Naked Turns 5 | . . 5 Heaviest Build 88 | 12 87 88 Greatest Support 20 | 20 16 16 Greatest Overweight (x) 5 | . 5 5 Average Overweight (x) 2 | . 3 4 Largest Inventory Capacity 25 | 8 25 25 Average Capacity 20 | 7 20 24 Most Carried 25 | 8 25 25 Average Carried 18 | 4 19 22 Final Capacity 25 | 8 25 5 Final Carried 25 | 8 25 5 Class Distribution -------------------- 100% | Mutant Dominant Class ---------------- Mutant | -10/Materials Mutant | -10/Mines Resources | -11 -10 -10 ----------- Run | Yrd Mat Min Matter Collected 934 | 299 536 99 Remotely . | . . . Salvage Created 911 | 117 774 20 Parts 49 | 7 42 . Haulers Intercepted 1 | . 1 . Recyclers Shooed 2 | . 2 . Parts Field Recycled . | . . . Retrieved Matter . | . . . Parts Self-Destructed . | . . . Prevented . | . . . Kills | -11 -10 -10 ------- Run | Yrd Mat Min Combat Hostiles Destroyed 22 | . 12 10 Guns 14 | . 12 2 AOE 8 | . . 8 Classes Destroyed 9 | 2 6 1 Worker 3 | . 3 . Tunneler 5 | 2 3 . Hauler 1 | . 1 . Recycler 2 | 1 1 . Operator 2 | . 2 . Watcher 2 | . 2 . Swarmer 3 | . 3 . Grunt 9 | . 9 . Assembled 10 | . . 10 Best Kill Streak 10 | 2 3 10 Combat Bots Only 10 | . 3 10 Max Kills in Single Turn 2 | 1 1 2 Gunslinging . | . . . Exploded 2 | . . 2 Melee . | . . . Uniques/NPCs Destroyed . | . . . Combat | -11 -10 -10 -------- Run | Yrd Mat Min Hostile Shots Fired 89 | . 53 36 Missed 23 | . 13 10 Hits 66 | . 40 26 Melee 7 | . . 7 Projectile 59 | . 40 19 AOE 9 | . . 9 Part Disruptions 1 | . . 1 Damage Taken 1209 | . 473 736 Core 267 | . 76 191 Absorbed by Shields . | . . . Regen/Repaired (Parts) 85 | . 85 . Core Remaining (%) 100 | 100 . . Volleys Fired 133 | 13 99 21 Largest 2 | 2 2 2 Hottest 100 | 60 100 60 Shots Fired 233 | 16 189 28 Gun 219 | 16 186 17 Cannon . | . . . Launcher 11 | . . 11 Special 3 | . 3 . Kinetic 118 | 13 96 9 Thermal 104 | 3 93 8 Explosive 11 | . . 11 Electromagnetic . | . . . Robot Hit Streak 10 | 5 10 6 Robot Miss Streak 5 | 2 5 3 Penetration Max . | . . . Secondary Targets . | . . . Shots Hit Robots 130 | 11 107 12 Core Hits 65 | 3 38 24 Critical Kills . | . . . Critical Parts Destroyed 1 | . 1 . Critical Strikes 1 | . 1 . Destroy 1 | . 1 . Melee Attacks . | . . . Impact . | . . . Slashing . | . . . Piercing . | . . . Sneak Attacks . | . . . Combat Hostiles . | . . . Follow-up Attacks . | . . . Damage Inflicted 2187 | 129 1308 750 Guns 1542 | 129 1308 105 Cannons . | . . . Explosions 645 | . . 645 Melee . | . . . Ramming . | . . . Kinetic 872 | 106 724 42 Thermal 670 | 23 584 63 Explosive 645 | . . 645 Electromagnetic . | . . . Impact . | . . . Slashing . | . . . Piercing . | . . . Highest Corruption 1 | . 1 1 Average Corruption 1 | . 1 1 Corruption Purged . | . . . Corruption Blocked . | . . . Effects 9 | . 7 2 Matter Fused 3 | . 3 . Heat Flow Errors 2 | . 1 1 Energy Discharges 2 | . 2 . Data Loss (minor) 1 | . 1 . Weapon Failures 1 | . . 1 Overload Shots . | . . . Overflow Damage 12 | . . 12 Projectiles . | . . . Explosions 12 | . . 12 Melee . | . . . Knockbacks . | . . . Impact . | . . . Kinetic . | . . . Secondary . | . . . Self-Inflicted Damage . | . . . Shots . | . . . Rammed . | . . . Targets Rammed . | . . . Kicked . | . . . Crushed . | . . . Highest Temperature 186 | . 100 186 Average Temperature 35 | . 31 104 Received Heat Transfer 281 | . 249 32 Siege Activations . | . . . Martial Activations . | . . . Shielding Activations . | . . . Robots Disrupted . | . . . Combat Hostiles . | . . . Robots Corrupted . | . . . Combat Hostiles . | . . . Parts Fried . | . . . Impact Corruptions . | . . . Robots Melted . | . . . Combat Hostiles . | . . . Parts Melted . | . . . Heat Transferred 1525 | 50 1325 150 Parts Sabotaged . | . . . Parts Stolen . | . . . Parts Stripped . | . . . Power Chain Reactions . | . . . Alert | -11 -10 -10 ------- Run | Yrd Mat Min Maximum Alert Level . | . . . Low Security (%) 100 | 100 100 100 Level 1 . | . . . Level 2 . | . . . Level 3 . | . . . Level 4 . | . . . Level 5 . | . . . High Security . | . . . Max Security . | . . . Peak Influence 115 | 10 115 42 Initial 42 | . . 42 Average 23 | 1 25 15 Influence Increases 559 | 15 505 39 Destroy 0b10 Robot/C 240 | . 240 . Destroy 0b10 Robot/NC 75 | 15 60 . Destroy Leader 66 | . 66 . Successful Hack 30 | . 30 . Select Force Hacks 60 | . 60 . Disable Machine 15 | . 15 . Destroy Structure 43 | . 4 39 Lose Combat Pursuer 30 | . 30 . Influence Decreases 559 | 15 396 148 Entered New Map 67 | . . 67 Time Decay 432 | 15 376 41 Lost Part 60 | . 20 40 Squads Dispatched 7 | . 7 . Investigation 5 | . 5 . Extermination . | . . . Reinforcement 2 | . 2 . Assault . | . . . Garrison . | . . . Intercept . | . . . Searches Triggered . | . . . Construction Impeded . | . . . Haulers Reinforced . | . . . Active Scanning Responses . | . . . Cargo Convoy Interrupts . | . . . Stealth | -11 -10 -10 --------- Run | Yrd Mat Min Distress Signals 2 | . 2 . Communications Jammed . | . . . Distress Signals . | . . . Times Spotted 44 | . 27 17 Peak Tracking Total 6 | . 6 6 Tactical Retreats 1 | . 1 . Traps | -11 -10 -10 ------- Run | Yrd Mat Min Traps Triggered 1 | . 1 . Indirectly . | . . . Trap Hack Attempts . | . . . Triggered . | . . . Disarmed . | . . . Reprogrammed . | . . . Reused . | . . . Traps Extracted . | . . . Installed . | . . . Triggered . | . . . Machines | -11 -10 -10 ---------- Run | Yrd Mat Min Machines Disabled 1 | . 1 . Max in Single Turn 1 | . 1 . Machines Repaired . | . . . Machines Dismantled . | . . . Machines Sabotaged . | . . . Overloaded Fab Kills . | . . . Hacking | -11 -10 -10 --------- Run | Yrd Mat Min Machines Accessed 9 | . 9 . Terminals 6 | . 6 . Fabricators . | . . . Repair Stations 1 | . 1 . Recycling Units 2 | . 2 . Scanalyzers . | . . . Garrison Access . | . . . Total Hacks 25 | . 25 . Successful 14 | . 14 . Failed 10 | . 10 . Catastrophic 3 | . 3 . Database Lockouts 1 | . 1 . Manual 17 | . 17 . Terminals 19 | . 19 . Fabricators . | . . . Repair Stations 2 | . 2 . Recycling Units 4 | . 4 . Scanalyzers . | . . . Garrison Access . | . . . Terminal Hacks 3 | . 3 . Part Schematic 1 | . 1 . Robot Analysis 1 | . 1 . Locate Traps 1 | . 1 . Fabricator Hacks . | . . . Repair Station Hacks 2 | . 2 . Scan Component 1 | . 1 . Repair 1 | . 1 . Recycling Unit Hacks 2 | . 2 . Retrieve Components 2 | . 2 . Scanalyzer . | . . . Garrison Access Hacks . | . . . Unauthorized Hacks 7 | . 7 . Terminals 5 | . 5 . Assimilate 1 | . 1 . Botnet 3 | . 3 . Operators 1 | . 1 . Fabricators . | . . . Repair Stations . | . . . Recycling Units 2 | . 2 . Tunnel 2 | . 2 . Scanalyzers . | . . . Garrison Access . | . . . Data Cores Recovered . | . . . Used . | . . . Hacking Detections 7 | . 7 . Full Trace Events 3 | . 3 . Feedback Events 1 | . 1 . Corruption 1 | . 1 . Feedback Blocked . | . . . Robot Schematics Acquired . | . . . Robots Built . | . . . Authchips . | . . . Time . | . . . Total Robot Build Rating . | . . . Part Schematics Acquired 1 | . 1 . Parts Built . | . . . Authchips . | . . . Time . | . . . Total Part Build Rating . | . . . Parts Repaired 1 | . 1 . Time 26 | . 26 . Parts Recycled . | . . . Recycled Matter . | . . . Retrieved Matter . | . . . Retrieved Components 18 | . 18 . Parts Scanalyzed . | . . . Part Schematics Acquired . | . . . Parts Damaged . | . . . Bothacking | -11 -10 -10 ------------ Run | Yrd Mat Min Used RIF Installer . | . . . Robots Hacked . | . . . Non-combat . | . . . Combat . | . . . Robot Hacks Applied . | . . . Relay Couplers Released . | . . . Fabnet Peak Effective % . | . . . Robots Rewired . | . . . Allies Hacked . | . . . Hacks Repelled . | . . . Allies | -11 -10 -10 -------- Run | Yrd Mat Min Total Allies . | . . . Largest Group . | . . . Highest-Rated Group . | . . . Highest-Rated Ally . | . . . Total Orders . | . . . Ally Attacks . | . . . Total Damage . | . . . Kills . | . . . Allies Corrupted . | . . . Allies Melted . | . . . Intel | -11 -10 -10 ------- Run | Yrd Mat Min Active Infowar (turns) 2321 | 24 2159 138 Seismic 2321 | 24 2159 138 Robot Analysis Total 1 | . 1 . Derelict Logs Recovered . | . . . Drone Launches . | . . . Drone Recoveries . | . . . Exploration | -11 -10 -10 ------------- Run | Yrd Mat Min Turns Passed 2421 | 119 2159 143 Spaces Moved 1117 | 48 1019 50 Core 8 | 1 . 7 Treads 37 | 37 . . Legs . | . . . Wheels 1072 | 10 1019 43 Hover . | . . . Flight . | . . . Fastest Speed 50 | 50 100 50 Average Speed 145 | 145 145 157 Slowest Speed 175 | 160 175 175 Overloaded Moves . | . . . Propulsion Burnouts . | . . . Robots Hopped . | . . . Potential Cave-ins . | . . . Cave-ins Triggered . | . . . Exploration Rate (%) 37 | 5 93 13 Regions Visited 2 Branch Regions 1 Pre-discovered Areas 2 | . 2 . Known Exits Taken . | . . . Unknown Exits Taken 2 | 1 1 . Scrap Searched . | . . . Spaces Dug 12 | . 1 11 Terrain Destroyed 55 | . 1 54 Melee . | . . . Projectile 1 | . 1 . AOE 54 | . . 54 Terrain Rammed . | . . . Walls Destroyed . | . . . Machines Disabled . | . . . Actions | -11 -10 -10 --------- Run | Yrd Mat Min Total 1667 | 77 1507 83 Wait 346 | . 346 . Move 1115 | 47 1018 50 Hop . | . . . Pick Up 33 | 9 23 1 Fast Attach 7 | 6 1 . Attach 8 | 1 2 5 Detach . | . . . Swap 15 | 1 9 5 Drop 10 | . 9 1 Fire 133 | 13 99 21 Melee . | . . . Ram . | . . . Kick . | . . . Crush . | . . . Escape Stasis . | . . . Rewire . | . . . Trap . | . . . Miscellaneous . | . . . Route ------- -11/Scrapyard -10/Materials (discovered 5 exits: [*Mat x3] / [*Min x2]) -10/Mines History --------- Turn | Location | Event 21 | -11/Scrapyard | Discovered new exit (range 15) 120 | -11/Scrapyard | Entered Materials 238 | -10/Materials | Discovered new exit (range 9) 272 | -10/Materials | Discovered new exit (range 10) 308 | -10/Materials | Build established: Mutant 465 | -10/Materials | Central database locked down 486 | -10/Materials | Discovered new exit (range 16) 1041 | -10/Materials | Repaired Assault Rifle 1446 | -10/Materials | Discovered new exit (range 9) 2137 | -10/Materials | Discovered new exit (range 11) 2279 | -10/Materials | Entered Mines 2308 | -10/Mines | Assembled infested the area 2313 | -10/Mines | Assisted by a Guerilla fighting off Assembled 2402 | -10/Mines | Lost 4 parts (1p1n2w) 2414 | -10/Mines | Destroyed 10 combat bots 2417 | -10/Mines | Released all parts (3) 2418 | -10/Mines | Core integrity fell below 50% 2421 | -10/Mines | Core integrity fell below 20% 2422 | -10/Mines | Destroyed by D-53 Grenadier with Mini Grenade Launcher Last Messages --------------- 02395_ Acquired 15 matter. 02396_ The unstable cave ceiling collapses. 02399_ System corrupted: Grenade Launcher failed to launch. 02403_ as-61086 destroyed. 02403_ as-02801 destroyed. 02408_ The unstable cave ceiling collapses. 02415_ Sml. Laser destroyed. 02415_ Com. Wheel destroyed. 02415_ Lgt. Treads destroyed. 02416_ Lgt. Ion Engine destroyed. 02417_ System corrupted: Heat flow error (+211). 02417_ Particle Gun destroyed. 02417_ Released Huge Storage Unit. 02417_ Released Seismic Detector. 02417_ Released Assault Rifle. 02417_ Dropped Seismic Detector. 02419_ Acquired Huge Storage Unit. 02420_ The unstable cave ceiling collapses. 02420_ Plasma Injector explodes. Map ----- +----------------------------------------------------+ | ?????????????????????????????????????????????????? | | ?????????????????????????????????????????????????? | | ?????????????????????????????????????????????????? | | ?????????????????????????????????????????????????? | | ?????????????????????????????????????????????????? | | ?????????????????????????????????????????????????? | | ?????????????????????????????????????????????????? | | ?????????????????????????????????????????????????? | | ?????????????????????????????????????????????????? | | ?????????????????????????????????????????????????? | | ?????????????????????????????????????????????????? | | ?????????????????????????????????????????????????? | | ?????????????????????????????????????????????????? | | ?????????????????????????????????????????????????? | | ?????????????????????????????????????????????????? | | ???????????????????????#######???????????????????? | | ???????????????????????# #???????????????????? | | ??????????????????????## #####???????????????? | | ?????????????????????##; ######??????????? | | ?????????????????????# ##?????????? | | ????????????????????## !! ##????????? | | ????????????????????# ! # ##???????? | | ???????????????????## [ ! # #???????? | | ???????????????????# ] == ! # #???????? | | ???????????????????# ! # #???????? | | ????????????????????# # @ [] !! ## ##???????? | | ??????????????? ]= ## #????????? | | ??????????????## # ##????????? | | ???????????????## # = ##?????????? | | ????????????????## ] # #??????????? | | ????????????????# d %## ##??????????? | | ????????????????## d #### #???????????? | | ?????????????????# #??#### ##???????????? | | ?????????????????# ?????####????????????? | | ?????????????????### # %[ r ?????????????????????? | | ??????????????????? ### = ?????????????????????? | | ??????????????????##??# [ ?????????????????????? | | ?????????????????????? ?????????????????????? | | ?????????????????????? ????????????????????? | | ?????????????????????? ????????????????????? | | ??????????????????????? ?????????????????????? | | ?????????????????????????????????????????????????? | | ?????????????????????????????????????????????????? | | ?????????????????????????????????????????????????? | | ?????????????????????????????????????????????????? | | ?????????????????????????????????????????????????? | | ?????????????????????????????????????????????????? | | ?????????????????????????????????????????????????? | | ?????????????????????????????????????????????????? | | ?????????????????????????????????????????????????? | +----------------------------------------------------+ Best States ------------- Heat Dissipation 25 Energy Generation 10 Energy Capacity 125 Matter Stores 300 Matter Capacity 300 Sight Range 16 Terrain Scan Density 10 Evasion (%) 46 Recoil Reduction 1 Item Schematics ----------------- Huge Storage Unit | -10/Materials | Hacked Robot Schematics ------------------ None Fabricated ------------ Nothing Repaired ---------- Assault Rifle | 15% | -10/Materials Alien Tech Used ----------------- None Achievements -------------- None Challenges ------------ None Game ------ Seed XenonSupercompositePendant Manual? 0 Play Time 00:17:51 Cumulative 194.8 hours Start 2025.10.17 @ 19:15:23 End 2025.10.17 @ 19:30:41 Sessions 1 Manual Loads 0 Difficulty Rogue Special Mode None Game No. 60 Rogue 54 Adventurer 0 Explorer 6 Win Type - Total 11 Types 6/0/2/1/1/0/0/1/0/0 Lore% 75 Gallery% 67 Achievement% 66 Wizard Run 0 Options --------- Layout 1 ASCII 0 Keyboard 0 Movement Mouse Keybinds 0 Fullscreen 2 Font 24/Smallcaps Map View 50x35 Zoom Use 0% Tactical HUD 1 Map Filters NONE Filters NONE Steam 1 RUN: a729a04b-f600-41dd-887d-4fbb96541a32